[Event "Titled Tuesday Blitz May 9 Late 2023"]
[White "Tworuszka, Michal"]
[Black "Sanchez, Robert"]
[WhiteFideId "1117858"]
[BlackFideId "2034360"]
[WhiteElo "2415"]
[BlackElo "1868"]
[Result "1-0"]
[Round "02"]
[TimeControl "180+2"]
[Date "2023.05.09"]
[WhiteClock "0:02:03"]
[BlackClock "0:00:27"]

1. e4 {[%clk 0:03:00]}  d5 {[%clk 0:02:46]} 2. Nc3 {[%clk 0:02:59]}  e6 {[%clk 0:02:46]} 3. d4 {[%clk 0:02:58]}  Nf6 {[%clk 0:02:46]} 4. e5 {[%clk 0:02:56]}  Nfd7 {[%clk 0:02:45]} 5. f4 {[%clk 0:02:56]}  c5 {[%clk 0:02:45]} 6. Nf3 {[%clk 0:02:57]}  Nc6 {[%clk 0:02:45]} 7. Be3 {[%clk 0:02:57]}  a6 {[%clk 0:02:42]} 8. Qd2 {[%clk 0:02:56]}  b5 {[%clk 0:02:41]} 9. Be2 {[%clk 0:02:56]}  cxd4 {[%clk 0:02:39]} 10. Nxd4 {[%clk 0:02:55]}  Nxd4 {[%clk 0:02:39]} 11. Bxd4 {[%clk 0:02:55]}  Nc5 {[%clk 0:02:39]} 12. Bd3 {[%clk 0:02:42]}  Be7 {[%clk 0:02:32]} 13. O-O {[%clk 0:02:40]}  O-O {[%clk 0:02:24]} 14. Kh1 {[%clk 0:02:34]}  Bd7 {[%clk 0:02:21]} 15. Ne2 {[%clk 0:02:34]}  Bc6 {[%clk 0:02:18]} 16. f5 {[%clk 0:02:27]}  exf5 {[%clk 0:02:16]} 17. Rxf5 {[%clk 0:02:22]}  Ne4 {[%clk 0:02:14]} 18. Qe3 {[%clk 0:02:18]}  Bd7 {[%clk 0:02:03]} 19. Rff1 {[%clk 0:02:11]}  Be6 {[%clk 0:00:27]} 20. Nf4 {[%clk 0:02:03]} 1-0


[Site "https://www.chess.com"]

[Event "Titled Tuesday Blitz May 9 Late 2023"]
[White "Panico, Nick"]
[Black "Olsson, William"]
[WhiteFideId "2026724"]
[BlackFideId "1741721"]
[WhiteElo "1982"]
[BlackElo "2197"]
[Result "0-1"]
[Round "02"]
[TimeControl "180+2"]
[Date "2023.05.09"]
[WhiteClock "0:01:04"]
[BlackClock "0:00:14"]

1. f4 {[%clk 0:03:00]}  c5 {[%clk 0:02:56]} 2. e4 {[%clk 0:03:00]}  g6 {[%clk 0:02:55]} 3. Nf3 {[%clk 0:02:59]}  Bg7 {[%clk 0:02:55]} 4. Be2 {[%clk 0:03:00]}  Nc6 {[%clk 0:02:54]} 5. O-O {[%clk 0:02:59]}  e6 {[%clk 0:02:55]} 6. c3 {[%clk 0:02:58]}  d5 {[%clk 0:02:51]} 7. d3 {[%clk 0:02:58]}  Nge7 {[%clk 0:02:51]} 8. Be3 {[%clk 0:02:52]}  b6 {[%clk 0:02:44]} 9. Qe1 {[%clk 0:02:46]}  Bb7 {[%clk 0:02:38]} 10. e5 {[%clk 0:02:38]}  Nf5 {[%clk 0:02:35]} 11. Bf2 {[%clk 0:02:39]}  h5 {[%clk 0:02:35]} 12. g3 {[%clk 0:02:38]}  d4 {[%clk 0:02:10]} 13. Nbd2 {[%clk 0:02:30]}  O-O {[%clk 0:01:44]} 14. Ng5 {[%clk 0:02:30]}  Bh6 {[%clk 0:01:32]} 15. Nge4 {[%clk 0:02:29]}  Kg7 {[%clk 0:01:27]} 16. Nf6 {[%clk 0:02:24]}  Nce7 {[%clk 0:01:25]} 17. c4 {[%clk 0:02:18]}  Ng8 {[%clk 0:01:21]} 18. Nde4 {[%clk 0:02:17]}  Nxf6 {[%clk 0:01:16]} 19. Nxf6 {[%clk 0:02:15]}  Qc8 {[%clk 0:01:06]} 20. h3 {[%clk 0:02:05]}  Qc6 {[%clk 0:01:05]} 21. Ne4 {[%clk 0:02:05]}  a6 {[%clk 0:01:00]} 22. g4 {[%clk 0:01:58]}  hxg4 {[%clk 0:00:56]} 23. hxg4 {[%clk 0:01:58]}  Bxf4 {[%clk 0:00:49]} 24. Bf3 {[%clk 0:01:47]}  Ne3 {[%clk 0:00:42]} 25. Bh4 {[%clk 0:01:41]}  Bxe5 {[%clk 0:00:29]} 26. Qf2 {[%clk 0:01:23]}  Rh8 {[%clk 0:00:28]} 27. Bg3 {[%clk 0:01:17]}  Qc7 {[%clk 0:00:27]} 28. Rae1 {[%clk 0:01:10]}  Bxg3 {[%clk 0:00:23]} 29. Nxg3 {[%clk 0:01:10]}  Nxf1 {[%clk 0:00:20]} 30. Rxf1 {[%clk 0:01:06]}  Bxf3 {[%clk 0:00:17]} 31. Qxf3 {[%clk 0:01:06]}  Rh3 {[%clk 0:00:14]} 32. Qf6+ {[%clk 0:01:05]}  Kg8 {[%clk 0:00:14]} 33. Ne4 {[%clk 0:01:04]}  Qh2# {[%clk 0:00:14]} 0-1


[Site "https://www.chess.com"]

[Event "Titled Tuesday Blitz May 9 Late 2023"]
[White "ArchibaldCerveza29"]
[Black "luachess1"]
[WhiteElo "2412"]
[BlackElo "1678"]
[Result "1-0"]
[Round "02"]
[TimeControl "180+2"]
[Date "2023.05.09"]
[WhiteClock "0:01:22"]
[BlackClock "0:00:10"]

1. f4 {[%clk 0:03:00]}  Nf6 {[%clk 0:02:59]} 2. Nf3 {[%clk 0:03:00]}  g6 {[%clk 0:02:59]} 3. g3 {[%clk 0:02:51]}  Bg7 {[%clk 0:02:59]} 4. Bg2 {[%clk 0:02:52]}  O-O {[%clk 0:02:59]} 5. O-O {[%clk 0:02:51]}  d6 {[%clk 0:03:00]} 6. d3 {[%clk 0:02:48]}  Nbd7 {[%clk 0:02:59]} 7. e4 {[%clk 0:02:48]}  e5 {[%clk 0:02:57]} 8. f5 {[%clk 0:02:48]}  a5 {[%clk 0:02:43]} 9. Nc3 {[%clk 0:02:38]}  Nc5 {[%clk 0:02:40]} 10. Bg5 {[%clk 0:02:28]}  c6 {[%clk 0:02:35]} 11. Nh4 {[%clk 0:01:54]}  Qe8 {[%clk 0:02:20]} 12. h3 {[%clk 0:01:48]}  b5 {[%clk 0:01:53]} 13. g4 {[%clk 0:01:46]}  b4 {[%clk 0:01:49]} 14. Ne2 {[%clk 0:01:46]}  Bb7 {[%clk 0:01:45]} 15. Ng3 {[%clk 0:01:45]}  d5 {[%clk 0:01:44]} 16. Qe1 {[%clk 0:01:43]}  dxe4 {[%clk 0:01:37]} 17. dxe4 {[%clk 0:01:44]}  Ba6 {[%clk 0:01:37]} 18. Rf2 {[%clk 0:01:42]}  Rd8 {[%clk 0:01:23]} 19. Qe3 {[%clk 0:01:42]}  Ncd7 {[%clk 0:01:10]} 20. Bf1 {[%clk 0:01:43]}  Bxf1 {[%clk 0:01:07]} 21. Raxf1 {[%clk 0:01:44]}  Qe7 {[%clk 0:00:55]} 22. Kh1 {[%clk 0:01:35]}  h6 {[%clk 0:00:31]} 23. Bxh6 {[%clk 0:01:35]}  Nxg4 {[%clk 0:00:22]} 24. hxg4 {[%clk 0:01:34]}  Qxh4+ {[%clk 0:00:21]} 25. Rh2 {[%clk 0:01:34]}  Qf6 {[%clk 0:00:18]} 26. g5 {[%clk 0:01:27]}  Qd6 {[%clk 0:00:16]} 27. f6 {[%clk 0:01:24]}  Bh8 {[%clk 0:00:15]} 28. Bxf8 {[%clk 0:01:22]}  Rxf8 {[%clk 0:00:15]} 29. Nf5 {[%clk 0:01:22]}  Qc5 {[%clk 0:00:10]} 30. Qh3 {[%clk 0:01:22]} 1-0


[Site "https://www.chess.com"]

[Event "Titled Tuesday Blitz May 9 Late 2023"]
[White "Silva Rosas, Natalia"]
[Black "Balla, Tamas-Kristof"]
[WhiteFideId "3000575"]
[BlackFideId "1208497"]
[WhiteElo "1651"]
[BlackElo "2334"]
[Result "0-1"]
[Round "02"]
[TimeControl "180+2"]
[Date "2023.05.09"]
[WhiteClock "0:00:07"]
[BlackClock "0:00:41"]

1. e4 {[%clk 0:03:00]}  c5 {[%clk 0:02:57]} 2. Nf3 {[%clk 0:02:59]}  e6 {[%clk 0:02:56]} 3. d3 {[%clk 0:02:59]}  d5 {[%clk 0:02:55]} 4. Nbd2 {[%clk 0:02:58]}  Nc6 {[%clk 0:02:55]} 5. g3 {[%clk 0:02:58]}  g6 {[%clk 0:02:55]} 6. Bg2 {[%clk 0:02:59]}  Bg7 {[%clk 0:02:55]} 7. O-O {[%clk 0:02:59]}  Nge7 {[%clk 0:02:54]} 8. Re1 {[%clk 0:02:57]}  O-O {[%clk 0:02:50]} 9. e5 {[%clk 0:02:55]}  d4 {[%clk 0:02:48]} 10. Qe2 {[%clk 0:02:54]}  Nd5 {[%clk 0:02:48]} 11. Nf1 {[%clk 0:02:49]}  Qc7 {[%clk 0:02:45]} 12. Bd2 {[%clk 0:02:31]}  b5 {[%clk 0:02:44]} 13. c4 {[%clk 0:02:25]}  bxc4 {[%clk 0:02:35]} 14. dxc4 {[%clk 0:02:25]}  Nb6 {[%clk 0:02:26]} 15. Bf4 {[%clk 0:02:07]}  a5 {[%clk 0:02:20]} 16. Rad1 {[%clk 0:02:02]}  a4 {[%clk 0:02:19]} 17. a3 {[%clk 0:01:58]}  Ba6 {[%clk 0:02:18]} 18. N1d2 {[%clk 0:01:49]}  Na5 {[%clk 0:02:17]} 19. Ng5 {[%clk 0:01:34]}  Naxc4 {[%clk 0:02:02]} 20. Bxa8 {[%clk 0:01:28]}  Rxa8 {[%clk 0:01:57]} 21. Qg4 {[%clk 0:01:18]}  Nxb2 {[%clk 0:01:49]} 22. Nde4 {[%clk 0:01:07]}  h5 {[%clk 0:01:41]} 23. Qf3 {[%clk 0:00:53]}  Nxd1 {[%clk 0:01:19]} 24. Nf6+ {[%clk 0:00:49]}  Bxf6 {[%clk 0:01:18]} 25. exf6 {[%clk 0:00:49]}  Qd7 {[%clk 0:01:07]} 26. Qxa8+ {[%clk 0:00:47]}  Nxa8 {[%clk 0:01:06]} 27. Rxd1 {[%clk 0:00:46]}  Qd5 {[%clk 0:01:05]} 28. f3 {[%clk 0:00:36]}  Nb6 {[%clk 0:00:57]} 29. Rb1 {[%clk 0:00:35]}  Qc6 {[%clk 0:00:52]} 30. Ne4 {[%clk 0:00:31]}  Bd3 {[%clk 0:00:52]} 31. Re1 {[%clk 0:00:17]}  Bxe4 {[%clk 0:00:51]} 32. fxe4 {[%clk 0:00:18]}  c4 {[%clk 0:00:51]} 33. e5 {[%clk 0:00:14]}  d3 {[%clk 0:00:51]} 34. Be3 {[%clk 0:00:13]}  Nd5 {[%clk 0:00:50]} 35. Bd4 {[%clk 0:00:13]}  c3 {[%clk 0:00:50]} 36. Rd1 {[%clk 0:00:11]}  c2 {[%clk 0:00:42]} 37. Rc1 {[%clk 0:00:11]}  d2 {[%clk 0:00:42]} 38. Rxc2 {[%clk 0:00:07]}  Qxc2 {[%clk 0:00:41]} 39. Kg2 {[%clk 0:00:06]}  d1=Q+ {[%clk 0:00:42]} 40. Kh3 {[%clk 0:00:07]}  Qg4# {[%clk 0:00:41]} 0-1


[Site "https://www.chess.com"]

[Event "Titled Tuesday Blitz May 9 Late 2023"]
[White "K2JW"]
[Black "awayceiling"]
[WhiteElo "2404"]
[BlackElo "1314"]
[Result "1-0"]
[Round "02"]
[TimeControl "180+2"]
[Date "2023.05.09"]
[WhiteClock "0:00:46"]
[BlackClock "0:00:52"]

1. d4 {[%clk 0:03:00]}  d5 {[%clk 0:02:58]} 2. c4 {[%clk 0:03:00]}  e6 {[%clk 0:02:58]} 3. Nf3 {[%clk 0:02:59]}  Nf6 {[%clk 0:02:55]} 4. Nc3 {[%clk 0:03:00]}  b6 {[%clk 0:02:49]} 5. cxd5 {[%clk 0:02:50]}  Nxd5 {[%clk 0:02:46]} 6. e4 {[%clk 0:02:43]}  Nf6 {[%clk 0:02:33]} 7. Bd3 {[%clk 0:02:22]}  Be7 {[%clk 0:02:29]} 8. O-O {[%clk 0:02:21]}  O-O {[%clk 0:02:28]} 9. e5 {[%clk 0:02:16]}  Nd5 {[%clk 0:02:27]} 10. Nxd5 {[%clk 0:02:16]}  exd5 {[%clk 0:02:27]} 11. Ne1 {[%clk 0:01:23]}  c5 {[%clk 0:02:23]} 12. f4 {[%clk 0:01:19]}  c4 {[%clk 0:02:13]} 13. Bc2 {[%clk 0:01:18]}  Ba6 {[%clk 0:02:13]} 14. f5 {[%clk 0:01:11]}  Bg5 {[%clk 0:01:55]} 15. f6 {[%clk 0:01:02]}  gxf6 {[%clk 0:01:46]} 16. Qh5 {[%clk 0:00:54]}  Re8 {[%clk 0:01:12]} 17. Qxh7+ {[%clk 0:00:50]}  Kf8 {[%clk 0:01:12]} 18. Bxg5 {[%clk 0:00:50]}  c3 {[%clk 0:00:53]} 19. Bxf6 {[%clk 0:00:47]}  Bxf1 {[%clk 0:00:52]} 20. Qh8# {[%clk 0:00:46]} 1-0


[Site "https://www.chess.com"]

[Event "Titled Tuesday Blitz May 9 Late 2023"]
[White "Yanchenko, Roman"]
[Black "Martinez Alcantara, Jose Eduardo"]
[WhiteFideId "4137329"]
[BlackFideId "3805662"]
[WhiteElo "2491"]
[BlackElo "2711"]
[Result "0-1"]
[Round "03"]
[TimeControl "180+2"]
[Date "2023.05.09"]
[WhiteClock "0:00:06"]
[BlackClock "0:00:10"]

1. d4 {[%clk 0:03:00]}  Nf6 {[%clk 0:03:00]} 2. Nf3 {[%clk 0:03:00]}  e6 {[%clk 0:03:00]} 3. Bf4 {[%clk 0:03:00]}  b6 {[%clk 0:03:00]} 4. e3 {[%clk 0:03:01]}  Bb7 {[%clk 0:03:01]} 5. Be2 {[%clk 0:03:01]}  c5 {[%clk 0:03:01]} 6. O-O {[%clk 0:03:01]}  cxd4 {[%clk 0:03:01]} 7. exd4 {[%clk 0:03:01]}  Be7 {[%clk 0:03:02]} 8. Nbd2 {[%clk 0:03:00]}  O-O {[%clk 0:03:02]} 9. Re1 {[%clk 0:03:01]}  d6 {[%clk 0:03:02]} 10. h3 {[%clk 0:02:56]}  Nbd7 {[%clk 0:03:02]} 11. Nf1 {[%clk 0:02:56]}  Qc7 {[%clk 0:03:01]} 12. Rc1 {[%clk 0:02:53]}  Rfe8 {[%clk 0:02:53]} 13. Ng3 {[%clk 0:02:39]}  Bf8 {[%clk 0:02:50]} 14. c3 {[%clk 0:02:13]}  e5 {[%clk 0:02:49]} 15. dxe5 {[%clk 0:02:13]}  dxe5 {[%clk 0:02:50]} 16. Be3 {[%clk 0:02:06]}  Nd5 {[%clk 0:02:47]} 17. Bb5 {[%clk 0:02:06]}  Rad8 {[%clk 0:02:29]} 18. Qa4 {[%clk 0:01:39]}  a6 {[%clk 0:02:03]} 19. Bxd7 {[%clk 0:01:12]}  Rxd7 {[%clk 0:01:48]} 20. Qg4 {[%clk 0:00:53]}  Nf6 {[%clk 0:01:32]} 21. Qf5 {[%clk 0:00:52]}  Rd6 {[%clk 0:00:48]} 22. Rcd1 {[%clk 0:00:47]}  Rxd1 {[%clk 0:00:46]} 23. Rxd1 {[%clk 0:00:47]}  Qc6 {[%clk 0:00:41]} 24. Qc2 {[%clk 0:00:37]}  h6 {[%clk 0:00:35]} 25. Qb3 {[%clk 0:00:36]}  b5 {[%clk 0:00:31]} 26. Nf5 {[%clk 0:00:31]}  Nd5 {[%clk 0:00:25]} 27. Bc1 {[%clk 0:00:26]}  Qe6 {[%clk 0:00:24]} 28. Ne3 {[%clk 0:00:25]}  Nxe3 {[%clk 0:00:24]} 29. Qxe6 {[%clk 0:00:25]}  Rxe6 {[%clk 0:00:24]} 30. Bxe3 {[%clk 0:00:26]}  f6 {[%clk 0:00:20]} 31. Rd8 {[%clk 0:00:23]}  Kf7 {[%clk 0:00:20]} 32. Rd7+ {[%clk 0:00:23]}  Re7 {[%clk 0:00:20]} 33. Rxe7+ {[%clk 0:00:21]}  Bxe7 {[%clk 0:00:21]} 34. Kf1 {[%clk 0:00:21]}  Bd5 {[%clk 0:00:20]} 35. b3 {[%clk 0:00:22]}  Ke6 {[%clk 0:00:19]} 36. Nd2 {[%clk 0:00:22]}  f5 {[%clk 0:00:19]} 37. f3 {[%clk 0:00:22]}  g5 {[%clk 0:00:19]} 38. Ke2 {[%clk 0:00:22]}  h5 {[%clk 0:00:19]} 39. c4 {[%clk 0:00:19]}  Bc6 {[%clk 0:00:19]} 40. Kd3 {[%clk 0:00:18]}  g4 {[%clk 0:00:19]} 41. hxg4 {[%clk 0:00:19]}  hxg4 {[%clk 0:00:19]} 42. fxg4 {[%clk 0:00:18]}  f4 {[%clk 0:00:19]} 43. Bb6 {[%clk 0:00:07]}  Bxg2 {[%clk 0:00:19]} 44. cxb5 {[%clk 0:00:07]}  axb5 {[%clk 0:00:18]} 45. a4 {[%clk 0:00:06]}  bxa4 {[%clk 0:00:19]} 46. bxa4 {[%clk 0:00:07]}  Kd5 {[%clk 0:00:19]} 47. a5 {[%clk 0:00:07]}  e4+ {[%clk 0:00:20]} 48. Ke2 {[%clk 0:00:08]}  e3 {[%clk 0:00:20]} 49. Bxe3 {[%clk 0:00:07]}  fxe3 {[%clk 0:00:18]} 50. Kxe3 {[%clk 0:00:07]}  Ke6 {[%clk 0:00:16]} 51. Ne4 {[%clk 0:00:07]}  Ke5 {[%clk 0:00:17]} 52. Nd2 {[%clk 0:00:06]}  Bc5+ {[%clk 0:00:17]} 53. Kd3 {[%clk 0:00:07]}  Bb7 {[%clk 0:00:16]} 54. g5 {[%clk 0:00:07]}  Ba6+ {[%clk 0:00:14]} 55. Kc3 {[%clk 0:00:07]}  Kd5 {[%clk 0:00:14]} 56. g6 {[%clk 0:00:07]}  Bd4+ {[%clk 0:00:14]} 57. Kb4 {[%clk 0:00:07]}  Bc5+ {[%clk 0:00:14]} 58. Kc3 {[%clk 0:00:07]}  Bf8 {[%clk 0:00:15]} 59. Nb3 {[%clk 0:00:07]}  Bc8 {[%clk 0:00:14]} 60. Nd2 {[%clk 0:00:06]}  Bg7+ {[%clk 0:00:12]} 61. Kb4 {[%clk 0:00:06]}  Ba6 {[%clk 0:00:13]} 62. Nb3 {[%clk 0:00:06]}  Bf6 {[%clk 0:00:13]} 63. Nd2 {[%clk 0:00:06]}  Bd3 {[%clk 0:00:11]} 64. Nb3 {[%clk 0:00:06]}  Bxg6 {[%clk 0:00:11]} 65. a6 {[%clk 0:00:06]}  Kc6 {[%clk 0:00:11]} 66. a7 {[%clk 0:00:06]}  Kb7 {[%clk 0:00:12]} 67. Nc5+ {[%clk 0:00:06]}  Kxa7 {[%clk 0:00:12]} 68. Nd7 {[%clk 0:00:07]}  Be7+ {[%clk 0:00:11]} 69. Kc4 {[%clk 0:00:08]}  Kb7 {[%clk 0:00:12]} 70. Ne5 {[%clk 0:00:08]}  Bh7 {[%clk 0:00:12]} 71. Kd5 {[%clk 0:00:09]}  Kc7 {[%clk 0:00:12]} 72. Ke6 {[%clk 0:00:10]}  Ba3 {[%clk 0:00:13]} 73. Nf7 {[%clk 0:00:10]}  Bg8 {[%clk 0:00:12]} 74. Kf6 {[%clk 0:00:11]}  Bb2+ {[%clk 0:00:12]} 75. Ke7 {[%clk 0:00:12]}  Bh7 {[%clk 0:00:12]} 76. Ng5 {[%clk 0:00:12]}  Bb1 {[%clk 0:00:13]} 77. Ne6+ {[%clk 0:00:12]}  Kc6 {[%clk 0:00:12]} 78. Nf4 {[%clk 0:00:13]}  Ba2 {[%clk 0:00:11]} 79. Ke8 {[%clk 0:00:13]}  Kd6 {[%clk 0:00:11]} 80. Kf8 {[%clk 0:00:13]}  Ba3 {[%clk 0:00:11]} 81. Kg7 {[%clk 0:00:13]}  Ke5 {[%clk 0:00:11]} 82. Nd3+ {[%clk 0:00:13]}  Kf5 {[%clk 0:00:11]} 83. Kh6 {[%clk 0:00:13]}  Bc4 {[%clk 0:00:11]} 84. Ne1 {[%clk 0:00:12]}  Bd5 {[%clk 0:00:11]} 85. Nd3 {[%clk 0:00:13]}  Be4 {[%clk 0:00:11]} 86. Nf2 {[%clk 0:00:12]}  Bc2 {[%clk 0:00:11]} 87. Nh3 {[%clk 0:00:11]}  Bc5 {[%clk 0:00:10]} 88. Kh5 {[%clk 0:00:10]}  Bd1+ {[%clk 0:00:10]} 89. Kh6 {[%clk 0:00:11]}  Be3+ {[%clk 0:00:10]} 90. Kg7 {[%clk 0:00:06]}  Bg4 {[%clk 0:00:10]} 0-1


[Site "https://www.chess.com"]

[Event "Titled Tuesday Blitz May 9 Late 2023"]
[White "Pranav, V"]
[Black "Prohaszka, Peter"]
[WhiteFideId "25060783"]
[BlackFideId "726265"]
[WhiteElo "2515"]
[BlackElo "2626"]
[Result "1-0"]
[Round "03"]
[TimeControl "180+2"]
[Date "2023.05.09"]
[WhiteClock "0:01:35"]
[BlackClock "0:00:00"]

1. d4 {[%clk 0:03:00]}  d5 {[%clk 0:02:59]} 2. Nc3 {[%clk 0:03:00]}  Nf6 {[%clk 0:02:58]} 3. Bf4 {[%clk 0:03:00]}  c5 {[%clk 0:02:56]} 4. e3 {[%clk 0:02:59]}  cxd4 {[%clk 0:02:56]} 5. exd4 {[%clk 0:02:59]}  a6 {[%clk 0:02:57]} 6. Nf3 {[%clk 0:02:59]}  Nc6 {[%clk 0:02:55]} 7. Ne5 {[%clk 0:02:59]}  Bd7 {[%clk 0:02:55]} 8. Be2 {[%clk 0:02:52]}  Rc8 {[%clk 0:02:47]} 9. O-O {[%clk 0:02:50]}  e6 {[%clk 0:02:16]} 10. Bf3 {[%clk 0:02:38]}  Qb6 {[%clk 0:02:14]} 11. Nxc6 {[%clk 0:02:29]}  bxc6 {[%clk 0:02:08]} 12. Na4 {[%clk 0:02:28]}  Qa7 {[%clk 0:01:50]} 13. c3 {[%clk 0:02:26]}  a5 {[%clk 0:01:43]} 14. Re1 {[%clk 0:02:25]}  Be7 {[%clk 0:01:34]} 15. Be2 {[%clk 0:02:24]}  O-O {[%clk 0:01:16]} 16. Bd3 {[%clk 0:02:24]}  c5 {[%clk 0:01:17]} 17. Nxc5 {[%clk 0:02:23]}  Bxc5 {[%clk 0:01:15]} 18. dxc5 {[%clk 0:02:24]}  Qxc5 {[%clk 0:01:14]} 19. Be5 {[%clk 0:02:24]}  Bb5 {[%clk 0:01:03]} 20. Bd4 {[%clk 0:02:02]}  Qc6 {[%clk 0:01:00]} 21. Bxf6 {[%clk 0:02:00]}  Bxd3 {[%clk 0:00:33]} 22. Bxg7 {[%clk 0:01:57]}  Kxg7 {[%clk 0:00:33]} 23. Qxd3 {[%clk 0:01:57]}  Qc4 {[%clk 0:00:34]} 24. Qg3+ {[%clk 0:01:56]}  Kf6 {[%clk 0:00:26]} 25. Rad1 {[%clk 0:01:50]}  Rg8 {[%clk 0:00:25]} 26. Qe5+ {[%clk 0:01:49]}  Ke7 {[%clk 0:00:22]} 27. Rxd5 {[%clk 0:01:49]}  Qc6 {[%clk 0:00:12]} 28. g3 {[%clk 0:01:44]}  Rcd8 {[%clk 0:00:03]} 29. Rxd8 {[%clk 0:01:43]}  Rxd8 {[%clk 0:00:04]} 30. Qxa5 {[%clk 0:01:41]}  f6 {[%clk 0:00:01]} 31. Qh5 {[%clk 0:01:38]}  Rd7 {[%clk 0:00:01]} 32. Qxh7+ {[%clk 0:01:37]}  Kd8 {[%clk 0:00:02]} 33. Qh8+ {[%clk 0:01:37]}  Kc7 {[%clk 0:00:01]} 34. Qxf6 {[%clk 0:01:38]}  Rd6 {[%clk 0:00:01]} 35. h4 {[%clk 0:01:36]}  Kb6 {[%clk 0:00:01]} 36. Qe5 {[%clk 0:01:35]}  Ka6 {[%clk 0:00:01]} 37. a4 {[%clk 0:01:34]}  Ka7 {[%clk 0:00:01]} 38. Qa5+ {[%clk 0:01:34]}  Kb8 {[%clk 0:00:00]} 39. Qb5+ {[%clk 0:01:35]} 1-0


[Site "https://www.chess.com"]